fUSD/lending_fUSD_20250117
["ID","MTS","AMOUNT","RATE_DAILY","PERIOD"]
[349270716,1737087039127,-1029.5,0.00027397,3]
[349270717,1737087039137,-1206.65,0.00027397,3]
[349270718,1737087039302,-1556.41,0.00027397,3]
[349270719,1737087039313,-500.0,0.00027397,3]
[349270720,1737087039323,-570.73710918,0.00027397,3]
[349270721,1737087039339,-635.91289082,0.00027397,3]
[349270722,1737087039349,-1556.41,0.00027397,3]
[349270723,1737087039359,-500.0,0.00027397,3]
[349270724,1737087039369,-1206.65,0.00027397,3]
[349270725,1737087039379,-500.0,0.00027397,3]
[349270726,1737087039388,-1556.41,0.00027397,3]
[349270727,1737087039398,-440.15485005,0.00027397,3]
[349270728,1737087039407,-1556.41,0.00027397,3]
[349270729,1737087039417,-419.42062442,0.00027397,3]
[349270730,1737087039427,-1556.41,0.00027397,3]
[349270731,1737087039437,-500.0,0.00027397,3]
[349270732,1737087039446,-500.0,0.00027397,3]
[349270733,1737087039455,-500.0,0.00027397,3]
[349270734,1737087039465,-1556.41,0.00027397,3]
[349270735,1737087039474,-500.0,0.00027397,3]
[349270736,1737087039483,-2692.93,0.00027397,3]
[349270737,1737087039493,-500.0,0.00027397,3]
[349270738,1737087039503,-2692.93,0.00027397,3]
[349270739,1737087039512,-2692.93,0.00027397,3]
[349270740,1737087039523,-500.0,0.00027397,3]
[349270741,1737087039532,-2692.93,0.00027397,3]
[349270742,1737087039542,-500.0,0.00027397,3]
[349270743,1737087039551,-500.0,0.00027397,3]
[349270744,1737087039561,-507.31,0.00027397,3]
[349270745,1737087039571,-500.0,0.00027397,3]
[349270746,1737087039580,-548.45928456,0.00027397,3]
[349270747,1737087039589,-507.31,0.00027397,3]
[349270748,1737087039599,-507.31,0.00027397,3]
[349270749,1737087039608,-507.31,0.00027397,3]
[349270750,1737087039619,-507.31,0.00027397,3]
[349270751,1737087039628,-500.0,0.00027397,3]
[349270752,1737087039638,-507.31,0.00027397,3]
[349270753,1737087039650,-500.0,0.00027397,3]
[349270754,1737087039660,-500.0,0.00027397,3]
[349270755,1737087039669,-500.0,0.00027397,3]
[349270756,1737087039678,-500.0,0.00027397,3]
[349270757,1737087039688,-500.0,0.00027397,3]
[349270758,1737087039699,-509.36561732,0.00027397,3]
[349270759,1737087039709,-500.0,0.00027397,3]
[349270760,1737087039719,-500.0,0.00027397,3]
[349270761,1737087039728,-500.0,0.00027397,3]
[349270762,1737087039738,-500.0,0.00027397,3]
[349270763,1737087039748,-500.0,0.00027397,3]
[349270764,1737087039758,-500.0,0.00027397,3]
[349270765,1737087039767,-500.0,0.00027397,3]
[349270766,1737087039777,-500.0,0.00027397,3]
[349270767,1737087039787,-387.58,0.00027397,3]
[349270768,1737087039797,-500.0,0.00027397,3]
[349270769,1737087039807,-627.01036271,0.00027397,3]
[349270770,1737087039817,-500.0,0.00027397,3]
[349270771,1737087039827,-500.0,0.00027397,3]
[349270772,1737087039837,-500.0,0.00027397,3]
[349270773,1737087039847,-500.0,0.00027397,3]
[349270774,1737087039861,-576.56,0.00027397,3]
[349270775,1737087039870,-733.4,0.00027397,3]
[349270776,1737087039879,-733.4,0.00027397,3]
[349270777,1737087039889,-733.4,0.00027397,3]
[349270778,1737087039900,-733.4,0.00027397,3]
[349270779,1737087039910,-733.4,0.00027397,3]
[349270780,1737087039919,-733.4,0.00027397,3]
[349270781,1737087039929,-500.0,0.00027397,3]
[349270782,1737087039940,-500.0,0.00027397,3]
[349270783,1737087039949,-500.0,0.00027397,3]
[349270784,1737087039959,-500.0,0.00027397,3]
[349270785,1737087039969,-500.0,0.00027397,3]
[349270786,1737087039979,-500.0,0.00027397,3]
[349270787,1737087039989,-500.0,0.00027397,3]
[349270788,1737087039999,-4453.35,0.00027397,3]
[349270789,1737087040009,-1151.64,0.00027397,3]
[349270790,1737087040019,-1151.64,0.00027397,3]
[349270791,1737087040028,-4453.35,0.00027397,3]
[349270792,1737087040038,-1151.64,0.00027397,3]
[349270793,1737087040047,-1151.64,0.00027397,3]
[349270794,1737087040057,-4453.35,0.00027397,3]
[349270795,1737087040067,-1151.64,0.00027397,3]
[349270796,1737087040076,-1151.64,0.00027397,3]
[349270797,1737087040086,-500.0,0.00027397,3]
[349270798,1737087040095,-4453.35,0.00027397,3]
[349270799,1737087040105,-526.0911583,0.00027397,3]
[349270800,1737087040115,-4453.35,0.00027397,3]
[349270801,1737087040125,-526.37301244,0.00027397,3]
[349270802,1737087040135,-500.0,0.00027397,3]
[349270803,1737087040145,-4453.35,0.00027397,3]
[349270804,1737087040155,-683.31,0.00027397,3]
[349270805,1737087040164,-500.0,0.00027397,3]
[349270806,1737087040174,-959.81286462,0.00027397,3]
[349270807,1737087040187,-1509.22856411,0.00027397,3]
[349270808,1737087040198,-385.87238127,0.00027397,3]
[349270809,1737087040210,-1383.91575475,0.00027397,3]
[349270810,1737087040221,-214.52043525,0.00027397,3]
[349270811,1737087040231,-346.66891842,0.00027397,3]
[349270814,1737087040486,-150.0,0.00027219,2]
[349270815,1737087040497,-233.35135604,0.00027397,3]
[349270816,1737087040594,-103.28972554,0.00027397,3]
[349270817,1737087040604,-500.0,0.00027397,3]
[349270818,1737087040616,-4453.35,0.00027397,3]
[349270819,1737087040626,-683.31,0.00027397,3]
[349270820,1737087040636,-1128.1,0.00027397,3]
[349270821,1737087040647,-1128.1,0.00027397,3]
[349270822,1737087040656,-500.0,0.00027397,3]
[349270823,1737087040666,-600.4940056,0.00027397,3]
[349270824,1737087040678,-3852.8559944,0.00027397,3]
[349270825,1737087040688,-1128.1,0.00027397,3]
[349270826,1737087040698,-683.31,0.00027397,3]
[349270827,1737087040709,-1128.1,0.00027397,3]
[349270828,1737087040719,-500.0,0.00027397,3]
[349270829,1737087040729,-1654.85280033,0.00027397,3]
[349270830,1737087040741,-2798.49719967,0.00027397,3]
[349270831,1737087040751,-683.31,0.00027397,3]
[349270832,1737087040760,-4453.35,0.00027397,3]
[349270833,1737087040770,-500.0,0.00027397,3]
[349270834,1737087040779,-508.62666495,0.00027397,3]
[349270835,1737087040791,-174.68333505,0.00027397,3]
[349270836,1737087040802,-4453.35,0.00027397,3]
[349270837,1737087040812,-500.0,0.00027397,3]
[349270838,1737087040822,-3949.51532647,0.00027397,3]
[349270839,1737087040834,-503.83467353,0.00027397,3]
[349270840,1737087040843,-500.0,0.00027397,3]
[349270841,1737087040854,-528.02609293,0.00027397,3]
[349270842,1737087040867,-2421.4,0.00027397,3]
[349270843,1737087040877,-440.7326666,0.00027397,3]
[349270844,1737087040887,-2421.4,0.00027397,3]
[349270845,1737087040896,-619.62,0.00027397,3]
[349270846,1737087040907,-619.62,0.00027397,3]
[349270847,1737087040916,-619.62,0.00027397,3]
[349270848,1737087040926,-269.58680183,0.00027397,3]
[349270849,1737087040939,-350.03319817,0.00027397,3]
[349270850,1737087040948,-2421.4,0.00027397,3]
[349270851,1737087040958,-500.0,0.00027397,3]
[349270852,1737087040968,-61.4166961,0.00027397,3]
[349270853,1737087040984,-1512.53915835,0.00027397,3]
[349270871,1737087043420,-847.44414555,0.00027397,3]
[349270872,1737087043429,-500.0,0.00027397,3]
[349270873,1737087043438,-500.0,0.00027397,3]
[349270874,1737087043446,-500.0,0.00027397,3]
[349270875,1737087043454,-522.32910407,0.00027397,3]
[349270876,1737087043462,-1521.93,0.00027397,3]
[349270877,1737087043470,-1521.93,0.00027397,3]
[349270878,1737087043477,-1521.93,0.00027397,3]
[349270879,1737087043485,-1521.93,0.00027397,3]
[349270880,1737087043495,-500.0,0.00027397,3]
[349270881,1737087043503,-500.0,0.00027397,3]
[349270882,1737087043512,-500.0,0.00027397,3]
[349270883,1737087043520,-500.0,0.00027397,3]
[349270884,1737087043528,-588.31964417,0.00027397,3]
[349270885,1737087043536,-500.0,0.00027397,3]
[349270886,1737087043543,-500.0,0.00027397,3]
[349270887,1737087043552,-1168.72,0.00027397,3]
[349270888,1737087043561,-500.0,0.00027397,3]
[349270889,1737087043571,-500.0,0.00027397,3]
[349270890,1737087043580,-500.0,0.00027397,3]
[349270891,1737087043590,-512.65662417,0.00027397,3]
[349270892,1737087043599,-1168.72,0.00027397,3]
[349270893,1737087043608,-500.0,0.00027397,3]
[349270894,1737087043618,-1168.72,0.00027397,3]
[349270895,1737087043628,-500.0,0.00027397,3]
[349270896,1737087043637,-1168.72,0.00027397,3]
[349270897,1737087043647,-500.0,0.00027397,3]
[349270898,1737087043657,-500.0,0.00027397,3]
[349270899,1737087043666,-1168.72,0.00027397,3]
[349270900,1737087043675,-500.0,0.00027397,3]
[349270901,1737087043684,-5673.1,0.00027397,3]
[349270902,1737087043694,-500.0,0.00027397,3]
[349270903,1737087043704,-500.0,0.00027397,3]
[349270904,1737087043714,-500.0,0.00027397,3]
[349270905,1737087043723,-827.9,0.00027397,3]
[349270906,1737087043733,-5673.1,0.00027397,3]
[349270907,1737087043742,-507.88589563,0.00027397,7]
[349270908,1737087043752,-500.0,0.00027397,3]
[349270909,1737087043762,-5673.1,0.00027397,3]
[349270910,1737087043772,-827.9,0.00027397,3]
[349270911,1737087043781,-5673.1,0.00027397,3]
[349270912,1737087043791,-827.9,0.00027397,3]
[349270913,1737087043801,-5673.1,0.00027397,3]
[349270914,1737087043811,-1168.72,0.00027397,3]
[349270915,1737087043821,-827.9,0.00027397,3]
[349270916,1737087043831,-5673.1,0.00027397,3]
[349270917,1737087043841,-500.0,0.00027397,3]
[349270918,1737087043853,-500.0,0.00027397,3]
[349270919,1737087043863,-500.0,0.00027397,3]
[349270920,1737087043872,-500.0,0.00027397,3]
[349270921,1737087043881,-1168.72,0.00027397,3]
[349270922,1737087043891,-500.0,0.00027397,3]
[349270923,1737087043902,-474.79512426,0.00027397,3]
[349270924,1737087043912,-500.0,0.00027397,3]
[349270925,1737087043922,-500.0,0.00027397,3]
[349270926,1737087043932,-1168.72,0.00027397,3]
[349270927,1737087043943,-500.0,0.00027397,3]
[349270928,1737087043952,-500.0,0.00027397,3]
[349270929,1737087043962,-1168.72,0.00027397,3]
[349270930,1737087043972,-500.0,0.00027397,3]
[349270931,1737087044019,-1168.72,0.00027397,3]
[349270932,1737087044029,-500.0,0.00027397,3]
[349270933,1737087044038,-500.0,0.00027397,3]
[349270934,1737087044047,-500.0,0.00027397,3]
[349270935,1737087044057,-1168.72,0.00027397,3]
[349270936,1737087044066,-500.0,0.00027397,3]
[349270937,1737087044075,-529.29,0.00027397,3]
[349270938,1737087044084,-1168.72,0.00027397,3]
[349270939,1737087044093,-500.0,0.00027397,3]
[349270940,1737087044102,-1168.72,0.00027397,3]
[349270941,1737087044111,-2052.13,0.00027397,3]
[349270942,1737087044120,-500.0,0.00027397,3]
[349270943,1737087044129,-2052.13,0.00027397,3]
[349270944,1737087044139,-2052.13,0.00027397,3]
[349270945,1737087044148,-2052.13,0.00027397,3]
[349270946,1737087044158,-450.35322522,0.00027397,3]
[349270947,1737087044167,-500.0,0.00027397,3]
[349270948,1737087044177,-500.0,0.00027397,3]
[349270949,1737087044186,-500.0,0.00027397,3]
[349270950,1737087044195,-500.0,0.00027397,3]
[349270951,1737087044205,-377.67270504,0.00027397,3]
[349270952,1737087044213,-500.0,0.00027397,3]
[349270953,1737087044222,-365.44,0.00027397,3]
[349270954,1737087044231,-500.0,0.00027397,3]
[349270955,1737087044240,-500.0,0.00027397,3]
[349270956,1737087044249,-500.0,0.00027397,3]
[349270957,1737087044259,-500.0,0.00027397,3]
[349270958,1737087044268,-500.0,0.00027397,3]
[349270959,1737087044277,-500.0,0.00027397,3]
[349270960,1737087044286,-511.35885641,0.00027397,3]
[349270961,1737087044295,-1095.69,0.00027397,3]
[349270962,1737087044304,-1095.69,0.00027397,3]
[349270963,1737087044314,-1095.69,0.00027397,3]
[349270964,1737087044323,-1095.69,0.00027397,3]
[349270965,1737087044332,-523.64829807,0.00027397,3]
[349270966,1737087044341,-1000.0,0.00027397,10]
[349270967,1737087044350,-1000.0,0.00027397,10]
[349270968,1737087044359,-1000.0,0.00027397,10]
[349270969,1737087044368,-1000.0,0.00027397,10]
[349270970,1737087044377,-1000.0,0.00027397,10]
[349270971,1737087044386,-1000.0,0.00027397,10]
[349270972,1737087044395,-1000.0,0.00027397,10]
[349270973,1737087044405,-1000.0,0.00027397,10]
[349270974,1737087044414,-1000.0,0.00027397,10]
[349270975,1737087044423,-500.0,0.00027397,3]
[349270976,1737087044432,-1000.0,0.00027397,10]
[349270977,1737087044442,-500.0,0.00027397,3]
[349270978,1737087044453,-500.0,0.00027397,3]
[349270979,1737087044462,-500.0,0.00027397,3]
[349270980,1737087044472,-500.0,0.00027397,3]
[349270981,1737087044481,-500.0,0.00027397,3]
[349270982,1737087044492,-500.0,0.00027397,3]
[349270983,1737087044501,-500.0,0.00027397,3]
[349270984,1737087044510,-500.0,0.00027397,3]
[349270985,1737087044519,-500.0,0.00027397,3]
[349270986,1737087044528,-500.0,0.00027397,3]
[349270987,1737087044537,-500.0,0.00027397,3]
[349270988,1737087044546,-1920.48,0.00027397,3]
[349270989,1737087044557,-1920.48,0.00027397,3]
[349270990,1737087044566,-500.0,0.00027397,3]
[349270991,1737087044575,-1920.48,0.00027397,3]
[349270992,1737087044585,-500.0,0.00027397,3]
[349270993,1737087044594,-1920.48,0.00027397,3]
[349270994,1737087044603,-500.0,0.00027397,3]
[349270995,1737087044612,-500.0,0.00027397,3]
[349270996,1737087044622,-425.87200088,0.00027397,3]
[349270997,1737087044631,-500.0,0.00027397,3]
[349270998,1737087044640,-500.0,0.00027397,3]
[349270999,1737087044649,-500.0,0.00027397,3]
[349271000,1737087044658,-623.48403888,0.00027397,3]
[349271001,1737087044668,-500.0,0.00027397,3]
[349271002,1737087044677,-500.0,0.00027397,3]
[349271003,1737087044686,-500.0,0.00027397,3]
[349271004,1737087044696,-500.0,0.00027397,3]
[349271005,1737087044706,-500.0,0.00027397,3]
[349271006,1737087044716,-500.0,0.00027397,3]
[349271007,1737087044726,-500.0,0.00027397,3]
[349271008,1737087044735,-4453.35,0.00027399,3]
[349271009,1737087044745,-1168.72,0.00027399,3]
[349271010,1737087044754,-568.09082134,0.000274,2]
[349271011,1737087044764,-365.0,0.000274,2]
[349271012,1737087044773,-518.9841,0.000274,2]
[349271013,1737087044783,-1000.0,0.000274,2]
[349271014,1737087044792,-947.9299,0.000274,2]
[349271015,1737087044801,-231.0,0.000274,2]
[349271016,1737087044810,-534.5344,0.000274,2]
[349271017,1737087044819,-500.0,0.00027401,3]
[349271018,1737087044828,-5904.41,0.00027401,3]
[349271019,1737087044837,-1199.33,0.00027401,3]
[349271020,1737087044847,-2187.17,0.00027401,3]
[349271021,1737087044858,-1848.82,0.00027401,3]
[349271022,1737087044868,-1387.94,0.00027401,3]
[349271023,1737087044877,-507.31,0.00027401,3]
[349271024,1737087044887,-1151.64,0.00027401,3]
[349271025,1737087044896,-500.0,0.00027401,3]
[349271026,1737087044907,-5673.1,0.00027401,3]
[349271027,1737087044916,-500.0,0.00027401,2]
[349271028,1737087044926,-500.0,0.00027401,2]
[349271029,1737087044938,-500.0,0.00027401,2]
[349271030,1737087044948,-500.0,0.00027401,2]
[349271031,1737087044957,-500.0,0.00027401,2]
[349271032,1737087044966,-500.0,0.00027401,2]
[349271033,1737087044976,-500.0,0.00027401,2]
[349271034,1737087044985,-500.0,0.00027401,2]
[349271035,1737087044995,-500.0,0.00027401,2]
[349271036,1737087045004,-500.0,0.00027401,2]
[349271037,1737087045013,-500.0,0.00027401,2]
[349271038,1737087045024,-500.0,0.00027401,2]
[349271039,1737087045034,-500.0,0.00027401,2]
[349271040,1737087045044,-500.0,0.00027401,2]
[349271041,1737087045053,-500.0,0.00027401,2]
[349271042,1737087045061,-500.0,0.00027401,2]
[349271043,1737087045071,-500.0,0.00027401,2]
[349271044,1737087045080,-500.0,0.00027401,2]
[349271045,1737087045088,-766.26,0.00027402,3]
[349271046,1737087045097,-675.79,0.00027402,3]
[349271047,1737087045107,-500.0,0.00027402,3]
[349271048,1737087045116,-505.42,0.00027402,3]
[349271049,1737087045125,-500.0,0.00027402,3]
[349271050,1737087045134,-494.10732041,0.00027402,3]
[349271051,1737087045145,-500.0,0.00027402,3]
[349271052,1737087045155,-663.86,0.00027402,3]
[349271053,1737087045165,-1442.37,0.00027402,3]
[349271054,1737087045175,-1180.71,0.00027402,3]
[349271055,1737087045184,-505.6,0.00027402,3]
[349271056,1737087045194,-519.08,0.00027402,3]
[349271057,1737087045203,-500.0,0.00027402,3]
[349271058,1737087045213,-2805.0,0.00027402,3]
[349271059,1737087045222,-1642.74,0.00027402,3]
[349271060,1737087045232,-1556.41,0.00027402,3]
[349271061,1737087045242,-733.4,0.00027402,3]
[349271062,1737087045252,-683.31,0.00027402,3]
[349271063,1737087045261,-500.0,0.00027402,3]
[349271064,1737087045271,-500.0,0.00027402,3]
[349271065,1737087045280,-884.35,0.00027403,3]
[349271066,1737087045290,-2836.64844,0.00027403,2]
[349271067,1737087045299,-734.25,0.00027403,3]
[349271068,1737087045308,-500.0,0.00027403,3]
[349271069,1737087045317,-500.0,0.00027403,3]
[349271070,1737087045326,-1407.11,0.00027403,3]
[349271071,1737087045335,-500.0,0.00027403,3]
[349271072,1737087045345,-500.0,0.00027403,3]
[349271073,1737087045354,-1206.65,0.00027403,3]
[349271074,1737087045364,-4453.35,0.00027403,3]
[349271075,1737087045373,-4453.35,0.00027403,3]
[349271076,1737087045383,-4453.35,0.00027403,3]
[349271077,1737087045392,-4453.35,0.00027403,3]
[349271078,1737087045401,-4453.35,0.00027403,3]
[349271079,1737087045411,-4453.35,0.00027403,3]
[349271080,1737087045421,-4453.35,0.00027403,3]
[349271081,1737087045430,-2421.4,0.00027403,3]
[349271082,1737087045439,-4453.35,0.00027403,3]
[349271083,1737087045449,-4453.35,0.00027403,3]
[349271084,1737087045458,-4453.41676136,0.00027403,3]
[349271085,1737087045468,-1168.72,0.00027403,3]
[349271086,1737087045478,-1168.72,0.00027403,3]
[349271087,1737087045488,-1168.72,0.00027403,3]
[349271088,1737087045497,-1168.72,0.00027403,3]
[349271089,1737087045506,-1168.72,0.00027403,3]
[349271090,1737087045516,-1168.72,0.00027403,3]
[349271091,1737087045525,-1168.72,0.00027403,3]
[349271092,1737087045535,-1168.72,0.00027403,3]
[349271093,1737087045545,-1168.72,0.00027403,3]
[349271094,1737087045554,-1168.83990136,0.00027403,3]
[349271095,1737087045564,-200.0,0.00027404,2]
[349271096,1737087045573,-150.0,0.00027404,7]
[349271097,1737087045583,-500.0,0.00027404,2]
[349271098,1737087045592,-500.0,0.00027404,2]
[349271099,1737087045602,-500.0,0.00027404,2]
[349271100,1737087045611,-500.0,0.00027404,2]
[349271101,1737087045621,-500.0,0.00027404,2]
[349271102,1737087045630,-500.0,0.00027404,2]
[349271103,1737087045639,-500.0,0.00027404,2]
[349271104,1737087045650,-500.0,0.00027404,2]
[349271105,1737087045660,-500.0,0.00027404,2]
[349271106,1737087045670,-500.0,0.00027404,2]
[349271107,1737087045680,-500.0,0.00027404,2]
[349271108,1737087045689,-500.0,0.00027404,2]
[349271109,1737087045699,-500.0,0.00027404,2]
[349271110,1737087045709,-575.0,0.00027404,2]
[349271111,1737087045718,-500.0,0.00027404,3]
[349271112,1737087045728,-5904.41,0.00027404,3]
[349271113,1737087045737,-516.0,0.00027404,7]
[349271114,1737087045747,-500.0,0.00027404,7]
[349271115,1737087045756,-500.0,0.00027404,7]
[349271116,1737087045765,-150.0,0.00027404,2]
[349271117,1737087045775,-2599.0,0.00027404,7]
[349271118,1737087045784,-1199.33,0.00027404,3]
[349271119,1737087045793,-2187.17,0.00027404,3]
[349271120,1737087045803,-500.0,0.00027404,3]
[349271121,1737087045812,-1848.82,0.00027404,3]
[349271122,1737087045822,-1189.31,0.00027404,3]
[349271123,1737087045831,-563.11,0.00027404,3]
[349271124,1737087045841,-500.0,0.00027404,3]
[349271125,1737087045855,-1029.5,0.00027404,3]
[349271126,1737087045864,-1387.94,0.00027404,3]
[349271127,1737087045874,-2692.93,0.00027404,3]
[349271128,1737087045884,-507.31,0.00027404,3]
[349271129,1737087045895,-244.84928026,0.00027404,7]
[349271130,1737087045904,-150.0,0.00027404,7]
[349271131,1737087045914,-500.0,0.00027404,3]
[349271132,1737087045924,-1151.64,0.00027404,3]
[349271133,1737087045935,-1128.1,0.00027404,3]
[349271134,1737087045944,-619.62,0.00027404,3]
[349271135,1737087045955,-1521.93,0.00027404,3]
[349271136,1737087045964,-500.0,0.00027404,3]
[349271137,1737087045974,-827.9,0.00027404,3]
[349271138,1737087045984,-5673.1,0.00027404,3]
[349271139,1737087045995,-2052.13,0.00027404,3]
[349271140,1737087046005,-1095.69,0.00027404,3]
[349271141,1737087046015,-1920.48,0.00027404,3]
[349271142,1737087046024,-2486.4097876,0.00027405,2]
[349271143,1737087046034,-5848.10245311,0.00027405,2]
[349271144,1737087046053,-1653.55282839,0.00027405,2]
[349271145,1737087046062,-1409.79589161,0.00027405,2]
[349271170,1737087046398,-500.0,0.00027397,3]
[349271171,1737087046409,-176.758973,0.00027397,3]
[349271173,1737087046418,-154.7,0.00027397,3]
[349271174,1737087046428,-500.0,0.00027401,2]
[349271175,1737087046437,-500.0,0.00027401,2]
[349271176,1737087046446,-500.0,0.00027401,2]
[349271177,1737087046456,-500.0,0.00027401,2]
[349271178,1737087046465,-500.0,0.00027401,2]
[349271179,1737087046474,-500.0,0.00027401,2]
[349271180,1737087046483,-500.0,0.00027401,2]
[349271181,1737087046493,-500.0,0.00027401,2]
[349271182,1737087046503,-5461.51363829,0.00027405,2]
[349271183,1737087046513,-780.0648649,0.00027405,2]
[349271184,1737087046522,-12696.3537398,0.00027405,2]
[349271185,1737087046531,-500.0,0.00027424,3]
[349271186,1737087046540,-244.8866294,0.00027431,7]
[349271187,1737087046550,-516.0,0.00027431,7]
[349271188,1737087046559,-500.0,0.00027431,7]
[349271189,1737087046568,-500.0,0.00027431,7]
[349271190,1737087046577,-2599.0,0.00027431,7]
[349271191,1737087046587,-150.0,0.00027431,7]
[349271192,1737087046596,-1105.0,0.00027432,2]
[349271193,1737087046606,-235.0,0.0002745,2]
[349271194,1737087046615,-500.0,0.00027451,4]
[349271195,1737087046624,-516.0,0.00027459,7]
[349271196,1737087046634,-500.0,0.00027459,7]
[349271197,1737087046644,-500.0,0.00027459,7]
[349271198,1737087046654,-2599.0,0.00027459,7]
[349271199,1737087046664,-150.0,0.00027459,7]
[349271201,1737087046674,-766.26,0.00027472,3]
[349271203,1737087046683,-675.79,0.00027472,3]
[349271205,1737087046692,-500.0,0.00027472,3]
[349271207,1737087046702,-505.42,0.00027472,3]
[349271208,1737087046711,-500.0,0.00027472,3]
[349271211,1737087046721,-450.74021859,0.00027472,3]
[349271212,1737087046731,-663.86,0.00027472,3]
[349271215,1737087046741,-1442.37,0.00027472,3]
[349271217,1737087046750,-1180.71,0.00027472,3]
[349271218,1737087046759,-505.6,0.00027472,3]
[349271220,1737087046769,-519.08,0.00027472,3]
[349271222,1737087046779,-500.0,0.00027472,3]
[349271224,1737087046788,-2805.0,0.00027472,3]
[349271226,1737087046798,-1642.74,0.00027472,3]
[349271229,1737087046809,-1556.41,0.00027472,3]
[349271231,1737087046818,-733.4,0.00027472,3]
[349271233,1737087046828,-683.31,0.00027472,3]
[349271235,1737087046838,-500.0,0.00027472,3]
[349271237,1737087046848,-500.0,0.00027473,5]
[349271238,1737087046858,-519.44862939,0.00027473,5]
[349271240,1737087046868,-315.18812744,0.00027473,5]
[349271243,1737087046878,-500.0,0.00027473,5]
[349271245,1737087046887,-150.91540918,0.00027473,5]
[349271247,1737087046898,-500.0,0.00027473,5]
[349271248,1737087046909,-151.81322113,0.00027473,5]
[349271251,1737087046919,-151.7566784,0.00027473,5]
[349271253,1737087046929,-500.0,0.00027478,5]
[349271255,1737087046939,-500.0,0.00027483,120]
[349271257,1737087046949,-516.0,0.00027486,7]
[349271259,1737087046960,-500.0,0.00027486,7]
[349271260,1737087046969,-622.52145778,0.00027486,7]
[349271263,1737087046979,-2599.0,0.00027486,7]
[349271264,1737087046989,-150.0,0.00027486,7]
[349271267,1737087046999,-500.0,0.00027506,6]
[349271269,1737087047009,-516.0,0.00027514,7]
[349271271,1737087047019,-500.0,0.00027514,7]
[349271273,1737087047032,-2599.0,0.00027514,7]
[349271275,1737087047041,-171.97399551,0.00027514,7]
[349271277,1737087047052,-500.0,0.00027532,3]
[349271278,1737087047061,-500.0,0.00027532,3]
[349271280,1737087047071,-500.0,0.00027532,3]
[349271282,1737087047080,-500.0,0.00027533,7]
[349271284,1737087047090,-166.57,0.00027534,30]
[349271286,1737087047099,-516.0,0.00027541,7]
[349271288,1737087047108,-500.0,0.00027541,7]
[349271290,1737087047118,-2599.0,0.00027541,7]
[349271292,1737087047127,-482.43480148,0.00027561,8]
[349271294,1737087047137,-516.0,0.00027568,7]
[349271296,1737087047146,-500.0,0.00027568,7]
[349271298,1737087047157,-2599.0,0.00027568,7]
[349271301,1737087047167,-500.0,0.00027587,3]
[349271303,1737087047176,-500.0,0.00027587,3]
[349271305,1737087047186,-500.0,0.00027587,3]
[349271307,1737087047196,-500.0,0.00027587,3]
[349271309,1737087047205,-500.0,0.00027591,120]
[349271311,1737087047215,-516.0,0.00027596,7]
[349271313,1737087047225,-500.0,0.00027596,7]
[349271315,1737087047234,-2599.0,0.00027596,7]
[349271317,1737087047244,-516.0,0.00027623,7]
[349271319,1737087047254,-500.0,0.00027623,7]